bitfinex-derivatives/quotes_BTCF0:USTF0_20250602
["timestamp","ask_amount","ask_price","bid_price","bid_amount"]
[1748855481094,0.79150438,104990.0,104980.0,0.3845778]
[1748855481287,0.79150438,104990.0,104980.0,0.4365378]
[1748855481288,1.42883212,104990.0,104980.0,0.4365378]
[1748855481482,1.58247785,104990.0,104980.0,0.7762978]
[1748855481685,1.58247785,104990.0,104980.0,0.7760978]
[1748855482090,1.58247785,104990.0,104980.0,0.58588]
[1748855482294,1.58247785,104990.0,104980.0,0.7762978]
[1748855482490,1.48922585,104990.0,104980.0,0.58488]
[1748855482797,1.49022585,104990.0,104980.0,0.58488]
[1748855482998,1.49022585,104990.0,104980.0,0.7752978]
[1748855483185,1.43194922,104990.0,104980.0,0.7752978]
[1748855483386,1.28672148,104990.0,104980.0,0.7752978]
[1748855483588,1.43194922,104990.0,104980.0,0.8366978]
[1748855484590,1.49022585,104990.0,104980.0,0.8366978]
[1748855484988,1.28528667,104990.0,104980.0,0.8366978]
[1748855485188,1.14005893,104990.0,104980.0,0.8366978]
[1748855485392,0.86132495,104990.0,104980.0,0.8976978]
[1748855485701,0.79462495,104990.0,104980.0,0.9586978]
[1748855486293,1.30065269,104990.0,104980.0,0.9586978]
[1748855486492,1.36125269,104990.0,104980.0,0.9586978]
[1748855486693,1.35825269,104990.0,104980.0,0.9596978]
[1748855487700,1.41955269,104990.0,104980.0,0.8986978]
[1748855488101,1.41955269,104990.0,104980.0,0.3187778]
[1748855488290,1.57440499,104990.0,104970.0,0.00014229]
[1748855488490,0.1904542,104960.0,104950.0,0.11805624]
[1748855488691,1.38728194,104960.0,104950.0,0.2973575]
[1748855488894,1.82252446,104960.0,104950.0,0.5728451]
[1748855489093,1.9677522,104960.0,104950.0,0.5726451]
[1748855489292,1.98150469,104960.0,104950.0,0.5728451]
[1748855489701,1.98250469,104960.0,104950.0,0.5728451]
[1748855489894,1.88250469,104960.0,104950.0,0.5728451]
[1748855490093,0.1904724,104950.0,104940.0,0.00014229]
[1748855490295,0.1904724,104950.0,104940.0,0.58146229]
[1748855490296,1.59922289,104950.0,104940.0,0.58146229]
[1748855490496,1.69451089,104950.0,104940.0,0.58146229]
[1748855491005,1.69451089,104950.0,104940.0,0.58166229]
[1748855491199,1.53553066,104950.0,104940.0,0.58166229]
[1748855491401,1.69451089,104950.0,104940.0,0.00034229]
[1748855491709,1.60642174,104950.0,104940.0,0.58142229]
[1748855491997,1.40174063,104950.0,104940.0,0.58142229]
[1748855492206,1.2427604,104950.0,104940.0,0.58122229]
[1748855492407,1.40174063,104950.0,104940.0,0.58142229]
[1748855492610,1.30645263,104950.0,104940.0,0.58142229]
[1748855494010,1.30645263,104950.0,104940.0,0.58082229]
[1748855494011,1.51111887,104950.0,104940.0,0.58082229]
[1748855494308,1.51111887,104950.0,104940.0,0.58074229]
[1748855494493,1.66599217,104950.0,104940.0,0.58074229]
[1748855494803,1.46132593,104950.0,104940.0,0.58074229]
[1748855495103,1.46132593,104950.0,104940.0,0.00034229]
[1748855495298,1.3023457,104950.0,104940.0,0.77103269]
[1748855495497,1.05643642,104950.0,104940.0,0.89623269]
[1748855495694,1.17312074,104950.0,104940.0,0.89623269]
[1748855497008,1.16415672,104950.0,104940.0,0.89623269]
[1748855497397,1.0474724,104950.0,104940.0,0.89623269]
[1748855498401,1.16415672,104950.0,104940.0,0.89623269]
[1748855499010,1.0474724,104950.0,104940.0,0.89623269]
[1748855499217,1.0474724,104950.0,104940.0,0.24150229]
[1748855499405,0.857,104950.0,104900.0,0.3608]
[1748855499595,0.857,104950.0,104880.0,0.2525913]
[1748855499596,0.1905997,104890.0,104880.0,0.2525913]
[1748855499795,1.44117993,104890.0,104880.0,0.062]
[1748855500007,1.57027993,104890.0,104880.0,0.2525999]
[1748855500207,1.57027993,104890.0,104880.0,0.8348399]
[1748855500395,1.57027993,104890.0,104880.0,0.2527999]
[1748855500795,1.57027993,104890.0,104880.0,0.8350799]
[1748855501200,1.0916,104890.0,104880.0,0.8350799]
[1748855501608,0.36094301,104900.0,104890.0,0.1905817]
[1748855501803,0.70094301,104900.0,104890.0,1.3337417]
[1748855502010,0.70094301,104900.0,104890.0,1.3973417]
[1748855502804,0.70094301,104900.0,104890.0,1.4614417]
[1748855503105,0.77562752,104900.0,104890.0,1.4614417]
[1748855505412,0.96619132,104900.0,104890.0,1.9275617]
[1748855505802,0.96619132,104900.0,104890.0,2.0451617]
[1748855506303,0.96619132,104900.0,104890.0,2.0453617]
[1748855506811,0.77562752,104900.0,104890.0,2.0453617]
[1748855507605,0.41482752,104900.0,104890.0,1.71595393]
[1748855507805,3e-08,104900.0,104890.0,2.91023393]
[1748855508014,0.3628,104910.0,104900.0,0.1905638]
[1748855508316,0.7428,104910.0,104900.0,0.3234638]
[1748855509216,0.7438,104910.0,104900.0,0.3234638]
[1748855509811,0.005,104910.0,104900.0,0.48244403]
[1748855510005,0.085,104910.0,104900.0,0.82776802]
[1748855510620,0.345,104910.0,104900.0,0.82776802]
[1748855510815,0.075,104910.0,104900.0,0.82776802]
[1748855511009,0.80067602,104910.0,104900.0,0.7897438]
[1748855511506,0.80067602,104910.0,104900.0,0.88506779]
[1748855511713,0.365,104910.0,104900.0,1.29404802]
[1748855511912,0.005,104910.0,104900.0,1.65484802]
[1748855512217,0.005,104910.0,104900.0,1.29404802]
[1748855512908,0.005,104910.0,104900.0,1.65484802]
[1748855513102,1e-07,104910.0,104900.0,1.65484802]
[1748855513307,1e-07,104910.0,104900.0,1.69484802]
[1748855513505,0.36094301,104920.0,104910.0,0.1905456]
[1748855513820,0.36094301,104920.0,104910.0,0.65938583]
[1748855514011,0.36094301,104920.0,104910.0,0.75470183]
[1748855514210,1e-08,104920.0,104910.0,1.3832398]
[1748855514715,1e-08,104920.0,104910.0,1.4032398]
[1748855514916,0.00100001,104920.0,104910.0,1.6572398]
[1748855515809,1e-08,104920.0,104910.0,1.6532398]
[1748855516009,0.00100001,104920.0,104910.0,1.6632398]
[1748855516520,1e-08,104920.0,104910.0,1.6632398]
[1748855516813,0.00100001,104920.0,104910.0,1.6652398]
[1748855517124,0.00100001,104920.0,104910.0,1.8611598]
[1748855517412,0.00100001,104920.0,104910.0,0.86889957]
[1748855517617,0.00100001,104920.0,104910.0,1.6111998]
[1748855518309,1e-08,104920.0,104910.0,1.9011998]
[1748855518714,1e-08,104920.0,104910.0,2.1811998]
[1748855520817,1e-08,104920.0,104910.0,2.34018003]
[1748855521316,0.07666246,104940.0,104930.0,0.1905084]
[1748855521529,0.02442436,104940.0,104930.0,2.73540863]
[1748855521727,0.62053115,104970.0,104960.0,0.190454]
[1748855522019,0.8079458,104970.0,104960.0,0.93267423]
[1748855522322,0.8079458,104970.0,104960.0,1.12757423]
[1748855522818,0.8739458,104970.0,104960.0,1.12757423]
[1748855523011,0.9371458,104970.0,104960.0,1.12757423]
[1748855523508,0.9391458,104970.0,104960.0,1.12757423]
[1748855524519,0.8779458,104970.0,104960.0,1.12757423]
[1748855525219,0.8779458,104970.0,104960.0,0.968594]
[1748855525416,0.8779458,104970.0,104960.0,1.12757423]
[1748855525608,0.9431458,104970.0,104960.0,1.12757423]
[1748855526106,0.8779458,104970.0,104960.0,1.12757423]
[1748855526310,0.8119458,104970.0,104960.0,0.54433423]
[1748855526612,0.4419458,104970.0,104960.0,1.12861423]
[1748855526804,0.3668,104970.0,104960.0,1.12861423]
[1748855527010,0.7468,104970.0,104960.0,1.12861423]
[1748855527320,0.3668,104970.0,104960.0,1.12861423]
[1748855527616,1e-07,104970.0,104960.0,1.74366245]
[1748855528017,1e-07,104970.0,104960.0,1.75366245]
[1748855529511,1e-07,104970.0,104960.0,2.08366245]
[1748855530427,1e-07,104970.0,104960.0,2.08262245]
[1748855532319,1e-07,104970.0,104960.0,2.38172245]
[1748855533830,1e-07,104970.0,104960.0,1.59784199]
[1748855534126,1e-07,104970.0,104960.0,2.38168245]
[1748855539636,1e-07,104970.0,104960.0,2.38124245]
[1748855540131,1e-07,104970.0,104960.0,2.21124245]
[1748855541625,1e-07,104970.0,104960.0,2.42124245]
[1748855543418,1e-07,104970.0,104960.0,1.83848245]
[1748855543625,1e-07,104970.0,104960.0,2.41984245]
[1748855544033,0.13094301,104980.0,104970.0,0.1904359]
[1748855544229,0.13094301,104980.0,104970.0,1.56647613]
[1748855545030,0.13094301,104980.0,104970.0,1.28521577]
[1748855545031,0.51194301,104980.0,104970.0,1.28521577]
[1748855545330,1.22214104,104980.0,104970.0,0.3327059]
[1748855545530,1.22214104,104980.0,104970.0,0.8189459]
[1748855545531,1.06316081,104980.0,104970.0,0.8189459]
[1748855545742,1.22214104,104980.0,104970.0,0.8189459]
[1748855546134,1.06316081,104980.0,104970.0,0.2053859]
[1748855546327,1.47214104,104980.0,104970.0,0.205386]
[1748855546528,0.190436,104970.0,104960.0,1.1283295]
[1748855546831,0.8102,104970.0,104960.0,1.9323776]
[1748855547030,1.000636,104970.0,104960.0,1.9323776]
[1748855547427,1.000636,104970.0,104960.0,1.9325776]
[1748855547733,0.8102,104970.0,104960.0,1.9395776]
[1748855547935,1.0006363,104970.0,104960.0,1.9395776]
[1748855548838,1.3614363,104970.0,104960.0,1.9395776]
[1748855549024,1.171,104970.0,104960.0,1.9395776]
[1748855549222,0.8102,104970.0,104960.0,2.09855783]
[1748855549439,0.8102,104970.0,104960.0,2.16875783]
[1748855549743,0.5209,104970.0,104960.0,2.16875783]
[1748855550032,0.5209,104970.0,104960.0,2.23895783]
[1748855550430,0.8817,104970.0,104960.0,2.23895783]
[1748855551729,0.8817,104970.0,104960.0,2.05505346]
[1748855552631,1.0721362,104970.0,104960.0,2.05505346]
[1748855552832,0.8817,104970.0,104960.0,2.05505346]
[1748855553141,0.8817,104970.0,104960.0,2.05505622]
[1748855553436,1.0721362,104970.0,104960.0,1.37125622]
[1748855553628,1.0721362,104970.0,104960.0,1.9363376]
[1748855553836,1.18872155,104970.0,104960.0,1.9365376]
[1748855555134,1.18872155,104970.0,104960.0,1.4534976]
[1748855555348,1.69296978,104970.0,104960.0,1.08792]
[1748855555639,1.57638443,104970.0,104960.0,1.2781743]
[1748855555836,1.72211612,104970.0,104960.0,1.8882943]
[1748855556739,1.72211612,104970.0,104960.0,1.2783743]
[1748855557042,1.72211612,104970.0,104960.0,1.8878143]
[1748855557536,1.82211612,104970.0,104960.0,1.69732]
[1748855557742,1.82211612,104970.0,104960.0,1.8877743]
[1748855557943,1.82211612,104970.0,104960.0,1.69712]
[1748855558238,1.82211612,104970.0,104960.0,1.8875743]
[1748855558239,1.72211612,104970.0,104960.0,1.8875743]
[1748855559543,1.73106991,104970.0,104960.0,1.8875743]
[1748855559744,1.72211612,104970.0,104960.0,1.8875743]
[1748855560842,1.57638443,104970.0,104960.0,1.8875743]
[1748855561033,1.63246833,104970.0,104950.0,0.00223925]
[1748855561232,0.1904906,104940.0,104930.0,0.285746]
[1748855561435,1.55756187,104940.0,104930.0,0.3656795]
[1748855561646,1.76206187,104940.0,104930.0,0.3656795]
[1748855562063,1.76206187,104940.0,104930.0,0.12756]
[1748855562246,1.85735787,104940.0,104930.0,0.61276]
[1748855562460,1.85735787,104940.0,104930.0,0.8032688]
[1748855562657,1.85835787,104940.0,104930.0,0.8092688]
[1748855562847,1.85835787,104940.0,104930.0,0.8090688]
[1748855563059,1.69937764,104940.0,104930.0,0.8090688]
[1748855563352,1.85735787,104940.0,104930.0,0.8030688]
[1748855563547,1.85735787,104940.0,104930.0,0.8032688]
[1748855563741,1.85735787,104940.0,104930.0,0.8030688]
[1748855564250,1.85735787,104940.0,104930.0,0.61276]
[1748855565244,1.95735787,104940.0,104930.0,0.61292]
[1748855565639,1.69837764,104940.0,104930.0,0.61292]
[1748855565840,1.85735787,104940.0,104930.0,0.61292]
[1748855566040,1.85735787,104940.0,104930.0,0.8034289]
[1748855566452,1.85735787,104940.0,104930.0,0.1907089]
[1748855566637,1.85735787,104940.0,104930.0,0.61388]
[1748855566944,1.76206187,104940.0,104930.0,0.8043887]
[1748855567349,1.86206187,104940.0,104930.0,0.61384]
[1748855567545,0.1905087,104930.0,104920.0,1.21075985]
[1748855567754,1.36328893,104930.0,104920.0,1.18904875]
[1748855567937,1.85859693,104930.0,104920.0,1.18904875]
[1748855568162,1.79534839,104930.0,104920.0,1.18904875]
[1748855568452,1.81432862,104930.0,104920.0,1.18924875]
[1748855568642,1.65534839,104930.0,104920.0,1.18924875]
[1748855568847,1.55534839,104930.0,104920.0,1.19024875]
[1748855569651,1.13956405,104930.0,104920.0,1.44887565]
[1748855569843,1.18434116,104930.0,104920.0,1.51827565]
[1748855570041,1.18834116,104930.0,104920.0,1.51727565]
[1748855570246,1.0723088,104930.0,104920.0,1.51727565]
[1748855570440,1.0016088,104930.0,104920.0,1.51727565]
[1748855571141,1.07765681,104930.0,104920.0,1.51727565]
[1748855571345,1.14735681,104930.0,104920.0,1.51727565]
[1748855571556,1.14335681,104930.0,104920.0,1.51627565]
[1748855572143,1.14235681,104930.0,104920.0,1.51627565]
[1748855572544,1.14135681,104930.0,104920.0,1.51627565]
[1748855572738,1.14135681,104930.0,104920.0,2.00895565]
[1748855572940,1.30033704,104930.0,104920.0,2.00895565]
[1748855573245,1.14135681,104930.0,104920.0,2.00895565]
[1748855574054,1.30033704,104930.0,104920.0,2.00895565]
[1748855574346,1.30033704,104930.0,104920.0,2.01059565]
[1748855574553,1.14135681,104930.0,104920.0,2.01039565]
[1748855574849,1.14135681,104930.0,104920.0,2.01059565]
[1748855577050,1.07165681,104930.0,104920.0,2.01059565]
[1748855577251,1.07165681,104930.0,104920.0,1.51627565]
[1748855577453,1.07165681,104930.0,104920.0,2.01431565]
[1748855577644,1.07165681,104930.0,104920.0,2.01411565]
[1748855577954,1.07165681,104930.0,104920.0,2.01431565]
[1748855578148,1.07165681,104930.0,104920.0,2.02215565]
[1748855578348,1.2173885,104930.0,104920.0,2.02215565]
[1748855579545,1.36280457,104930.0,104920.0,1.33110875]
[1748855579854,1.77721257,104930.0,104920.0,1.26170875]
[1748855580055,1.77721257,104930.0,104920.0,1.76178875]
[1748855580056,1.87721257,104930.0,104920.0,1.76178875]
[1748855580349,1.68550525,104930.0,104920.0,1.06148875]
[1748855580649,1.78550525,104930.0,104920.0,1.06148875]
[1748855580853,1.78550525,104930.0,104920.0,1.69432875]
[1748855581049,1.78466193,104930.0,104920.0,1.69432875]
[1748855581254,1.78466193,104930.0,104920.0,1.69412875]
[1748855581453,1.78466193,104930.0,104920.0,1.69432875]
[1748855581846,1.58148088,104930.0,104920.0,1.69432875]
[1748855582244,1.78463705,104930.0,104920.0,1.69432875]
[1748855582445,1.63922098,104930.0,104920.0,1.69432875]
[1748855582654,1.78463705,104930.0,104920.0,1.69432875]
[1748855582949,1.58148088,104930.0,104920.0,1.76462875]
[1748855583153,1.78366509,104930.0,104920.0,1.13198875]
[1748855583456,1.64224902,104930.0,104920.0,1.76546875]
[1748855583653,1.79066509,104930.0,104920.0,1.76546875]
[1748855584560,1.58748088,104930.0,104920.0,1.76546875]
[1748855584955,1.6454145,104930.0,104920.0,1.76546875]
[1748855585258,1.93608035,104930.0,104920.0,1.76546875]
[1748855585451,1.93608035,104930.0,104920.0,1.83406875]
[1748855585651,1.84077235,104930.0,104920.0,1.83406875]
[1748855586250,1.63742266,104930.0,104920.0,2.02459555]
[1748855586576,1.15060659,104930.0,104920.0,2.09279555]
[1748855586859,1.00535681,104930.0,104920.0,2.09279555]
[1748855587064,1.15060659,104930.0,104920.0,2.09279555]
[1748855587455,1.29602266,104930.0,104920.0,2.09279555]
[1748855588052,1.15060659,104930.0,104920.0,2.09279555]
[1748855588252,1.29602266,104930.0,104920.0,2.09279555]
[1748855589161,1.15060659,104930.0,104920.0,2.09279555]
[1748855589365,1.15060659,104930.0,104920.0,2.23821162]
[1748855589754,1.15060659,104930.0,104920.0,2.09279555]
[1748855590956,1.15060659,104930.0,104920.0,2.09287555]
[1748855592465,1.29602266,104930.0,104920.0,1.59327555]
[1748855592668,1.29602266,104930.0,104920.0,2.09787555]
[1748855593164,1.29602266,104930.0,104920.0,2.09767555]
[1748855593363,1.29602266,104930.0,104920.0,2.09787555]
[1748855593556,1.15060659,104930.0,104920.0,2.09787555]
[1748855593758,1.15060659,104930.0,104920.0,2.09727555]
[1748855594163,1.29602266,104930.0,104920.0,1.46031555]
[1748855594368,1.29602266,104930.0,104920.0,2.10275555]
[1748855594566,1.29602266,104930.0,104920.0,2.10255555]
[1748855595070,1.29602266,104930.0,104920.0,2.10275555]
[1748855595760,1.15077288,104930.0,104920.0,2.10275555]
[1748855596160,1.00535681,104930.0,104920.0,1.46031555]
[1748855596355,1.00535681,104930.0,104920.0,2.10191555]
[1748855596962,1.15099549,104930.0,104920.0,2.10191555]
[1748855597770,1.00535681,104930.0,104920.0,2.10191555]
[1748855598268,1.00535681,104930.0,104920.0,1.59907555]
[1748855598469,1.15099351,104930.0,104920.0,2.10907555]
[1748855598669,1.00535681,104930.0,104920.0,2.10887555]
[1748855598868,1.00535681,104930.0,104920.0,1.46031555]
[1748855599072,1.00535681,104930.0,104920.0,2.10943555]
[1748855601469,1.15106489,104930.0,104920.0,2.10943555]
[1748855601669,1.00535681,104930.0,104920.0,2.10943555]
[1748855602173,1.1510528,104930.0,104920.0,2.10943555]
[1748855602374,1.00535681,104930.0,104920.0,2.10943555]
[1748855604077,1.2087065,104930.0,104920.0,2.10943555]
[1748855604473,1.35412257,104930.0,104920.0,2.10943555]
[1748855605479,1.15077288,104930.0,104920.0,2.10943555]
[1748855605865,1.29644707,104930.0,104920.0,2.10943555]
[1748855606067,1.151031,104930.0,104920.0,2.10943555]
[1748855606676,1.151031,104930.0,104920.0,2.25485162]
[1748855606883,1.151031,104930.0,104920.0,2.10943555]
[1748855611171,1.151031,104930.0,104920.0,1.59907555]
[1748855611376,1.151031,104930.0,104920.0,1.46031555]
[1748855611575,1.151031,104930.0,104920.0,2.10723555]
[1748855613482,1.00535681,104930.0,104920.0,2.10723555]
[1748855615080,1.00535681,104930.0,104920.0,2.25265162]
[1748855616179,0.81484801,104930.0,104920.0,2.25265162]
[1748855616373,0.44484801,104930.0,104920.0,2.25265162]
[1748855616576,0.22976455,104930.0,104920.0,2.44723555]
[1748855616776,0.97056455,104930.0,104920.0,2.59265162]
[1748855616975,0.97056455,104930.0,104920.0,2.10723555]
[1748855617183,0.97056455,104930.0,104920.0,2.25245162]
[1748855617480,0.97056455,104930.0,104920.0,2.25265162]
[1748855617686,0.97056455,104930.0,104920.0,2.10723555]
[1748855617870,0.97056455,104930.0,104920.0,2.25265162]
[1748855618583,0.82626801,104930.0,104920.0,2.20254355]
[1748855618878,0.97198455,104930.0,104920.0,2.34795962]
[1748855619179,0.82626801,104930.0,104920.0,2.34795962]
[1748855620780,0.94274098,104930.0,104920.0,2.34795962]
[1748855622287,0.58274098,104930.0,104920.0,2.34795962]
[1748855622487,0.14589297,104930.0,104920.0,2.41573837]
[1748855622684,0.14589297,104930.0,104920.0,2.64573837]
[1748855623091,0.11845044,104940.0,104930.0,0.1905086]
[1748855623280,0.11845044,104940.0,104930.0,0.3306086]
[1748855623480,0.11845044,104940.0,104930.0,0.48602467]
[1748855623691,0.11845044,104940.0,104930.0,0.58132067]
[1748855624193,0.12245044,104940.0,104930.0,0.58132067]
[1748855624387,0.006,104940.0,104930.0,0.58232067]
[1748855624591,0.006,104940.0,104930.0,0.48702467]
[1748855624999,0.006,104940.0,104930.0,0.48802467]
[1748855625000,0.002,104940.0,104930.0,0.48802467]
[1748855625491,0.002,104940.0,104930.0,0.49278467]
[1748855626196,0.002,104940.0,104930.0,0.92349674]
[1748855626696,0.002,104940.0,104930.0,1.28429674]
[1748855627889,0.00014301,104950.0,104940.0,0.1904905]
[1748855628193,0.37014301,104950.0,104940.0,1.75442264]
[1748855628492,0.00014301,104950.0,104940.0,1.34755064]
[1748855628687,0.3608,104960.0,104950.0,0.1904723]
[1748855628888,0.7208,104960.0,104950.0,0.47798837]
[1748855630503,0.7228,104960.0,104950.0,0.47798837]
[1748855631006,0.9152542,104960.0,104950.0,0.4704123]
[1748855631205,1.0588542,104960.0,104950.0,1.11754837]
[1748855632115,0.8684,104960.0,104950.0,1.12677258]
[1748855632407,0.7248,104960.0,104950.0,1.12677258]
[1748855633208,0.79108674,104960.0,104950.0,1.20677258]
[1748855633401,0.79108674,104960.0,104950.0,1.06135651]
[1748855633603,0.79108674,104960.0,104950.0,1.20677258]
[1748855634114,0.79108674,104960.0,104950.0,1.48757258]
[1748855634115,0.43028674,104960.0,104950.0,1.48757258]
[1748855634311,0.314,104960.0,104950.0,1.48757258]
[1748855634508,0.314,104960.0,104950.0,1.15677258]
[1748855634710,0.09120649,104960.0,104950.0,1.15677258]
[1748855635307,0.09120649,104960.0,104950.0,1.12677258]
[1748855637414,0.09120649,104960.0,104950.0,1.14677258]
[1748855638117,0.40120649,104960.0,104950.0,1.14677258]
[1748855638507,0.40120649,104960.0,104950.0,1.14881258]
[1748855638909,0.40120649,104960.0,104950.0,1.14901258]
[1748855639415,0.76200649,104960.0,104950.0,1.12849258]
[1748855640818,0.76200649,104960.0,104950.0,1.12769258]
[1748855641019,0.40120649,104960.0,104950.0,1.12769258]
[1748855642121,0.40120649,104960.0,104950.0,0.48455651]
[1748855642330,0.40120649,104960.0,104950.0,0.49455651]
[1748855642623,0.54540649,104960.0,104950.0,1.12685258]
[1748855642812,1.09666069,104960.0,104950.0,0.1954323]
[1748855643012,1.31547676,104960.0,104950.0,0.14256]
[1748855643224,1.22827027,104960.0,104950.0,0.8299124]
[1748855643524,1.22827027,104960.0,104950.0,0.8297924]
[1748855643714,1.22827027,104960.0,104950.0,0.8299924]
[1748855644028,1.22827027,104960.0,104950.0,0.8297924]
[1748855644223,1.22827027,104960.0,104950.0,0.8299924]
[1748855646525,1.0828542,104960.0,104950.0,0.8299924]
[1748855647226,0.8924,104960.0,104950.0,0.97540847]
[1748855647528,0.8924,104960.0,104950.0,1.04370847]
[1748855647826,1.00891876,104960.0,104950.0,1.11190847]
[1748855648027,1.00893139,104960.0,104950.0,1.11190847]
[1748855648425,0.86223139,104960.0,104950.0,1.11190847]
[1748855648926,0.7457,104960.0,104950.0,1.11190847]
[1748855649114,0.819,104960.0,104950.0,1.11190847]
[1748855649728,0.93553139,104960.0,104950.0,1.11190847]
[1748855649928,1.12598559,104960.0,104950.0,1.11190847]
[1748855650430,0.93553139,104960.0,104950.0,1.11190847]
[1748855650911,0.86223139,104960.0,104950.0,1.11190847]
[1748855651224,0.79133139,104960.0,104950.0,1.11190847]
[1748855651725,0.6748,104960.0,104950.0,1.11190847]
[1748855651927,0.004,104960.0,104950.0,1.18190847]
[1748855652133,0.09150749,104960.0,104950.0,1.54270847]
[1748855652626,0.1186744,104970.0,104960.0,0.1904542]
[1748855652828,0.00214301,104970.0,104960.0,1.62997027]
[1748855653411,0.00214301,104970.0,104960.0,1.94538634]
[1748855653629,0.1186744,104970.0,104960.0,1.79997027]
[1748855654127,0.00214301,104970.0,104960.0,1.79997027]
[1748855654325,0.00614301,104970.0,104960.0,1.79997027]
[1748855654523,0.00614301,104970.0,104960.0,1.6545542]
[1748855654930,0.00614301,104970.0,104960.0,1.79997027]
[1748855655130,0.00914301,104970.0,104960.0,1.79997027]
[1748855655332,0.00914301,104970.0,104960.0,2.29329027]
[1748855656930,0.00914301,104970.0,104960.0,2.42585027]
[1748855657537,0.00914301,104970.0,104960.0,2.43061027]
[1748855657937,0.32914301,104970.0,104960.0,2.43061027]
[1748855662542,0.32914301,104970.0,104960.0,2.2851942]
[1748855662743,0.32914301,104970.0,104960.0,2.43061027]
[1748855663043,0.32914301,104970.0,104960.0,2.2851942]
[1748855663237,0.32914301,104970.0,104960.0,2.43061027]
[1748855664240,0.32914301,104970.0,104960.0,2.44844086]
[1748855664440,0.4456744,104970.0,104960.0,2.44844086]
[1748855668035,0.1256744,104970.0,104960.0,2.44844086]
[1748855668638,0.1256744,104970.0,104960.0,2.59385693]
[1748855669645,0.1256744,104970.0,104960.0,2.57602634]
[1748855670443,0.1256744,104970.0,104960.0,2.43061027]
[1748855671946,0.1256744,104970.0,104960.0,1.93761027]
[1748855672347,0.4456744,104970.0,104960.0,2.42509027]
[1748855672654,0.1256744,104970.0,104960.0,2.42509027]
[1748855674466,0.09656804,104970.0,104960.0,2.42509027]
[1748855674764,0.09656804,104970.0,104960.0,2.2796742]
[1748855675066,0.09656804,104970.0,104960.0,2.42509027]
[1748855675653,0.08956804,104970.0,104960.0,2.42809027]
[1748855675857,0.08956804,104970.0,104960.0,2.43209027]
[1748855676460,0.16586804,104970.0,104960.0,2.43209027]
[1748855676862,0.08956804,104970.0,104960.0,2.43209027]
[1748855677265,0.00214301,104970.0,104960.0,2.43209027]
[1748855677463,0.00214301,104970.0,104960.0,2.2866742]
[1748855677665,0.00214301,104970.0,104960.0,2.43209027]
[1748855677968,0.35214301,104970.0,104960.0,2.43209027]
[1748855678568,0.4686744,104970.0,104960.0,2.43209027]
[1748855678767,0.35214301,104970.0,104960.0,2.43209027]
[1748855679272,0.4686744,104970.0,104960.0,2.43209027]
[1748855680464,0.1186744,104970.0,104960.0,2.43209027]
[1748855680771,0.4786744,104970.0,104960.0,2.43209027]
[1748855681167,0.1186744,104970.0,104960.0,2.43209027]
[1748855681673,0.4886744,104970.0,104960.0,2.43209027]
[1748855682077,0.1186744,104970.0,104960.0,2.79289027]
[1748855682370,0.1186744,104970.0,104960.0,2.86289027]
[1748855682570,0.00214301,104970.0,104960.0,2.86289027]
[1748855682966,0.00214301,104970.0,104960.0,2.7174742]
[1748855683163,0.00214301,104970.0,104960.0,2.90586971]
[1748855685765,0.1186744,104970.0,104960.0,3.00830634]
[1748855685963,0.1186744,104970.0,104960.0,2.86289027]
[1748855686166,0.00214301,104970.0,104960.0,2.90586561]
[1748855686974,0.00214301,104970.0,104960.0,2.89518561]
[1748855687369,0.00214301,104970.0,104960.0,2.85221027]
[1748855687873,0.00214301,104970.0,104960.0,2.62185027]
[1748855690068,0.00214301,104970.0,104960.0,2.66481152]
[1748855690370,0.00214301,104970.0,104960.0,2.66373152]
[1748855690774,0.37214301,104970.0,104960.0,2.66373152]
[1748855691467,0.00214301,104970.0,104960.0,2.66373152]
[1748855692279,0.08982412,104970.0,104960.0,2.66373152]
[1748855694274,0.08982412,104970.0,104960.0,2.65373152]
[1748855694483,0.08982412,104970.0,104960.0,2.87373152]
[1748855694682,0.08982412,104970.0,104960.0,2.72831018]
[1748855694876,0.08982412,104970.0,104960.0,2.87372625]
[1748855695276,0.08982412,104970.0,104960.0,3.01914232]
[1748855695774,0.11891415,105000.0,104990.0,0.1904]
[1748855695969,0.5124,105010.0,105000.0,0.1903819]
[1748855696169,0.8324,105010.0,105000.0,0.1903819]
[1748855696485,1.56389641,105010.0,105000.0,1.8780619]
[1748855696670,1.41848034,105010.0,105000.0,1.8780619]
[1748855696875,1.2727638,105010.0,105000.0,1.8780619]
[1748855697189,1.0227638,105010.0,105000.0,1.8782619]
[1748855697883,1.09796795,105010.0,105000.0,1.8782619]
[1748855698085,1.09796795,105010.0,105000.0,1.8830219]
[1748855698579,1.44319996,105010.0,105000.0,1.8832619]
[1748855699183,1.51899996,105010.0,105000.0,1.8832619]
[1748855699384,1.51899996,105010.0,105000.0,2.02867797]
[1748855699579,1.66503909,105010.0,105000.0,2.02867797]
[1748855700586,1.66503909,105010.0,105000.0,1.8832619]
[1748855700786,1.66503909,105010.0,105000.0,1.8831019]
[1748855700986,1.81045516,105010.0,105000.0,1.2770619]
[1748855701186,1.86887082,105010.0,105000.0,1.8827419]
[1748855701485,1.86887082,105010.0,105000.0,1.8829419]
[1748855701985,1.86887082,105010.0,105000.0,0.00596]
[1748855702187,0.1904,104990.0,104980.0,0.12989564]
[1748855702393,0.1904182,104980.0,104970.0,2.0198103]
[1748855702686,0.1904363,104970.0,104960.0,0.8440506]
[1748855702877,1.10695237,104970.0,104960.0,0.4134638]
[1748855703080,1.0568043,104970.0,104960.0,0.8916638]
[1748855703280,1.0568043,104970.0,104960.0,0.8918638]
[1748855703603,1.20277351,104970.0,104960.0,0.8918638]
[1748855704583,1.20377351,104970.0,104960.0,1.03727987]
[1748855704788,1.20377351,104970.0,104960.0,1.04203987]
[1748855705590,1.28187351,104970.0,104960.0,0.8966238]
[1748855706188,1.28187351,104970.0,104960.0,0.9657238]
[1748855706396,1.28187351,104970.0,104960.0,1.11113987]
[1748855706582,1.18660551,104970.0,104960.0,1.25843987]
[1748855707092,1.18660551,104970.0,104960.0,1.1130238]
[1748855707288,1.1359043,104970.0,104960.0,0.61036]
[1748855707491,1.18605237,104970.0,104960.0,0.61036]
[1748855707682,1.28032037,104970.0,104960.0,0.61016]
[1748855707994,1.28032037,104970.0,104960.0,0.8018145]
[1748855708488,1.18505237,104970.0,104960.0,0.8018145]
[1748855708790,1.1399043,104970.0,104960.0,0.61036]
[1748855708994,1.28532037,104970.0,104960.0,0.3232545]
[1748855709193,1.43128958,104970.0,104960.0,0.8006145]
[1748855709387,1.28532037,104970.0,104960.0,0.8006145]
[1748855709583,1.19005237,104970.0,104960.0,0.8006145]
[1748855710082,1.19005237,104970.0,104960.0,0.3232545]
[1748855710283,1.18805237,104970.0,104960.0,0.611]
[1748855710481,1.0426363,104970.0,104960.0,0.8014545]
[1748855710678,1.18805237,104970.0,104960.0,0.8014545]
[1748855710882,1.67873644,104970.0,104960.0,0.00496]
[1748855711079,1.77873644,104970.0,104960.0,0.00496]
[1748855711288,1.83477516,104970.0,104960.0,0.00496]